Cogmind - Beta 17 @@@ ROGUE MODE // 2026.08.04 @ 10:26:34 Player: OBLIQUE Result: Destroyed by Optimus with Helical Railgun Performance ------------- Evolutions (0) 0 Regions Visited (4) 800 Robots Destroyed (15) 75 Value Destroyed (513) 513 Prototype IDs (26) 520 Alien Tech Used (0) 0 Bonus (800) 800 TOTAL SCORE: 2708 Bonus ------- Registered with UFD 300 Met Optimus in HQ 500 Cogmind --------- Core Integrity 0/250 Matter 235/300 Energy 132/240 System Corruption 0% Temperature Cool (3) Movement Walking (200) Ox1 Location -8/Scraptown Parts ------- > --- POWER (1) -------- Nuclear Core > --- PROPULSION (2) --- Cargo Legs > --- UTILITY (2+2) ---- Scrap Suit High-capacity Storage Unit (+) Spectral Analyzer (+) > --- WEAPON (2) ------- Barrage Gun Heavy Mace > --- INVENTORY (20) --- Tri-treads Scrap Suit Improved Heat Sink Humpback Large Matter Pod (150) Surveybot 17 Chip Advanced Targeting Computer Improved Propulsion Shielding Makeshift Light Armor Plating Self-contained Transmogrifier Siege Cannon CPS Tube (2) Peak State ------------ > --- POWER ------------ Nuclear Core > --- PROPULSION ------- Cargo Legs > --- UTILITY ---------- Scrap Suit High-capacity Storage Unit Spectral Analyzer > --- WEAPON ----------- Barrage Gun Heavy Mace > --- INVENTORY -------- Tri-treads Scrap Suit Improved Heat Sink Humpback Large Matter Pod Surveybot 17 Chip Advanced Targeting Computer Improved Propulsion Shielding Makeshift Light Armor Plating Self-contained Transmogrifier Siege Cannon CPS Tube [Rating: 50] Favorites ----------- Power Deuterium Engine Engine Deuterium Engine Power Core Nuclear Core Propulsion Armored Wheel Treads Light Treads Leg Cargo Legs Wheel Armored Wheel Utility Humpback Device Improved Heat Sink Storage Humpback Processor Spectral Analyzer Weapon Barrage Gun Energy Gun Medium Laser Ballistic Gun Barrage Gun Special Weapon CPS Tube Impact Weapon Heavy Mace Special Melee Weapon Improved Datajack Build | -11 -10 -10 -10 -8 ------- Run | Yrd Mat Min Sub Scr Slots Evolved . | . . . . . Power . | . . . . . Propulsion . | . . . . . Utility . | . . . . . Weapon . | . . . . . Parts Attached 33 | 10 3 . 8 12 Power 5 | 2 1 . . 2 Engine 4 | 2 1 . . 1 Core 1 | . . . . 1 Reactor . | . . . . . Propulsion 9 | 4 . . 2 3 Treads 2 | 2 . . . . Leg 1 | . . . . 1 Wheel 6 | 2 . . 2 2 Hover . | . . . . . Flight . | . . . . . Utility 8 | 2 2 . 1 3 Device 3 | 1 1 . . 1 Storage 4 | 1 1 . 1 1 Processor 1 | . . . . 1 Hackware . | . . . . . Protection . | . . . . . Artifact . | . . . . . Weapon 11 | 2 . . 5 4 Energy Gun 1 | 1 . . . . Energy Cannon . | . . . . . Ballistic Gun 7 | 1 . . 5 1 Ballistic Cannon . | . . . . . Launcher . | . . . . . Special Weapon 1 | . . . . 1 Impact Weapon 1 | . . . . 1 Slashing Weapon . | . . . . . Piercing Weapon . | . . . . . Special Melee Weapon 1 | . . . . 1 Unidentified Prototypes . | . . . . . Parts Lost 9 | . . . 4 5 Power 2 | . . . 1 1 Propulsion 3 | . . . 1 2 Utility . | . . . . . Weapon 4 | . . . 2 2 Highest Loss Streak 5 | . . . 2 5 To Critical Strikes . | . . . . . Average Backups 15 | 3 4 8 17 16 Power 1 | . 1 2 2 1 Propulsion 2 | 1 2 2 2 2 Utility 5 | . . 1 5 6 Weapon 4 | . 1 3 6 3 Tool/Special . | . . . . . Unused Backups 33 | . . . 2 31 Power 3 | . . . . 3 Propulsion 3 | . . . . 3 Utility 13 | . . . . 13 Weapon 11 | . . . 2 9 Tool/Special 3 | . . . . 3 Average Slot Usage (%) 76 | . 100 100 87 69 Engine 7 | . 14 14 11 6 Treads 3 | . 28 28 5 . Wheel 24 | . . . 22 27 Device 2 | . 14 14 5 . Storage 13 | . 14 14 14 13 Energy Gun 1 | . 14 14 . . Ballistic Gun 21 | . 14 14 27 20 Peak Build Rating 50 | 7 9 9 16 50 Average Rating 15 | 5 7 9 12 17 On Entrance 8 | . 7 9 9 16 Avg Prop Armor Cover (%) 15 | . . . 12 18 Naked Turns . | . . . . . Heaviest Build 215 | 14 29 29 213 215 Greatest Support 55 | 40 40 40 40 55 Greatest Overweight (x) 17 | . . . 8 17 Average Overweight (x) 5 | . . . 5 6 Largest Inventory Capacity 35 | 8 15 15 35 35 Average Capacity 30 | 7 14 15 27 34 Most Carried 27 | 4 8 9 27 27 Average Carried 17 | 3 4 8 17 19 Final Capacity 35 | 8 15 15 35 20 Final Carried 27 | 4 8 9 27 18 Scrap Suit Usage (%) 1 | . . . . 1 Class Distribution -------------------- 80% | Hauler-Mutant 14% | Mutant 5% | Scavenger-Mutant Dominant Class ---------------- Mutant | -10/Materials Mutant | -10/Mines Hauler-Mutant | -10/Subcaves Hauler-Mutant | -8/Scraptown Resources | -11 -10 -10 -10 -8 ----------- Run | Yrd Mat Min Sub Scr Matter Collected 752 | 297 50 . 293 112 Remotely 40 | 10 30 . . . Salvage Created 583 | 87 143 . 255 98 Parts 34 | 2 6 . 19 7 Haulers Intercepted . | . . . . . Recyclers Shooed . | . . . . . Parts Field Recycled . | . . . . . Retrieved Matter . | . . . . . Parts Self-Destructed 6 | . . . 6 . Prevented . | . . . . . Parts Restored . | . . . . . Kills | -11 -10 -10 -10 -8 ------- Run | Yrd Mat Min Sub Scr Combat Hostiles Destroyed 14 | . 3 . 9 2 Guns 14 | . 3 . 9 2 Classes Destroyed 7 | 1 1 . 3 2 Recycler 1 | 1 . . . . Swarmer 2 | . . . 2 . Grunt 4 | . 3 . 1 . Sentry 1 | . . . 1 . Subdweller 5 | . . . 5 . Explorer 1 | . . . . 1 Guru 1 | . . . . 1 Best Kill Streak 2 | 1 2 . 2 2 Combat Bots Only 2 | . 2 . 2 2 Max Kills in Single Turn 1 | 1 1 . 1 1 Gunslinging . | . . . . . Exploded . | . . . . . Melee . | . . . . . Uniques/NPCs Destroyed . | . . . . . Combat | -11 -10 -10 -10 -8 -------- Run | Yrd Mat Min Sub Scr Hostile Shots Fired 176 | . 32 . 65 79 Missed 53 | . 6 . 24 23 Hits 123 | . 26 . 41 56 Projectile 123 | . 26 . 41 56 Critical Strikes 6 | . . . 1 5 Damage Taken 2047 | . 319 . 521 1207 Core 257 | . 30 . 55 172 Absorbed by Shields . | . . . . . Core Remaining (%) 100 | 100 . . . . Volleys Fired 72 | 7 20 . 38 7 Largest 2 | 2 2 . 2 2 Hottest 70 | 70 70 . 70 56 Shots Fired 142 | 14 40 . 76 12 Gun 140 | 14 40 . 76 10 Cannon . | . . . . . Launcher . | . . . . . Special 2 | . . . . 2 Kinetic 110 | 7 20 . 73 10 Thermal 30 | 7 20 . 3 . Explosive . | . . . . . Electromagnetic . | . . . . . Robot Hit Streak 8 | 7 8 . 8 7 Robot Miss Streak 5 | 2 3 . 5 1 Penetration Max . | . . . . . Secondary Targets 1 | . . . . 1 Max Gunslinging Chain 1 | . . . . 1 Shots Hit Robots 92 | 9 27 . 46 10 Core Hits 27 | 2 9 . 11 5 Critical Kills 2 | . . . 2 . Critical Parts Destroyed 1 | . . . 1 . Critical Strikes 4 | . 1 . 3 . Burn 1 | . 1 . . . Destroy 3 | . . . 3 . Melee Attacks . | . . . . . Impact . | . . . . . Slashing . | . . . . . Piercing . | . . . . . Sneak Attacks . | . . . . . Combat Hostiles . | . . . . . Follow-up Attacks . | . . . . . Damage Inflicted 1249 | 98 306 . 724 121 Guns 1243 | 92 306 . 724 121 Cannons . | . . . . . Explosions . | . . . . . Melee . | . . . . . Ramming 6 | 6 . . . . Kinetic 986 | 41 127 . 697 121 Thermal 257 | 51 179 . 27 . Explosive . | . . . . . Electromagnetic . | . . . . . Impact . | . . . . . Slashing . | . . . . . Piercing . | . . . . . Highest Corruption . | . . . . . Average Corruption . | . . . . . Corruption Purged . | . . . . . Corruption Blocked . | . . . . . Overload Shots . | . . . . . Overflow Damage . | . . . . . Projectiles . | . . . . . Explosions . | . . . . . Melee . | . . . . . Knockbacks . | . . . . . Impact . | . . . . . Kinetic . | . . . . . Secondary . | . . . . . Self-Inflicted Damage . | . . . . . Shots . | . . . . . Rammed 3 | 3 . . . . Targets Rammed 3 | 3 . . . . Kicked . | . . . . . Crushed . | . . . . . Highest Temperature 213 | 50 213 . . 51 Average Temperature 77 | 22 110 . . 19 Received Heat Transfer 646 | . 186 . 54 406 Effects 1 | . 1 . . . Energy Bleed 1 | . 1 . . . Siege Activations . | . . . . . Martial Activations . | . . . . . Shielding Activations . | . . . . . Robots Disrupted . | . . . . . Combat Hostiles . | . . . . . Robots Corrupted . | . . . . . Combat Hostiles . | . . . . . Parts Fried . | . . . . . Impact Corruptions . | . . . . . Robots Melted . | . . . . . Combat Hostiles . | . . . . . Parts Melted 1 | . 1 . . . Heat Transferred 814 | 148 592 . 74 . Parts Sabotaged . | . . . . . Parts Stolen . | . . . . . Parts Stripped . | . . . . . Power Chain Reactions . | . . . . . Alert | -11 -10 -10 -10 -8 ------- Run | Yrd Mat Min Sub Scr Maximum Alert Level . | . . . . . Low Security (%) 100 | 100 100 100 . . Level 1 . | . . . . . Level 2 . | . . . . . Level 3 . | . . . . . Level 4 . | . . . . . Level 5 . | . . . . . High Security . | . . . . . Max Security . | . . . . . Peak Influence 60 | 5 60 15 . . Initial 15 | . . 15 . . Average 7 | . 15 2 . . Influence Increases 226 | 5 121 . 100 . Destroy 0b10 Robot/C 140 | . 60 . 80 . Destroy 0b10 Robot/NC 5 | 5 . . . . Destroy Leader 30 | . 10 . 20 . Successful Hack 6 | . 6 . . . Lose Combat Pursuer 45 | . 45 . . . Influence Decreases 226 | 5 81 40 100 . Entered New Map 25 | . . 25 . . Time Decay 201 | 5 81 15 100 . Squads Dispatched 2 | . 2 . . . Investigation . | . . . . . Extermination . | . . . . . Reinforcement 2 | . 2 . . . Assault . | . . . . . Garrison . | . . . . . Intercept . | . . . . . Searches Triggered . | . . . . . Construction Impeded . | . . . . . Haulers Reinforced . | . . . . . Active Scanning Responses . | . . . . . Cargo Convoy Interrupts . | . . . . . Stealth | -11 -10 -10 -10 -8 --------- Run | Yrd Mat Min Sub Scr Distress Signals 1 | . 1 . . . Communications Jammed . | . . . . . Distress Signals . | . . . . . Times Spotted 35 | . 7 . 10 18 Peak Tracking Total 9 | . 3 . 3 9 Tactical Retreats 2 | . 2 . . . Traps | -11 -10 -10 -10 -8 ------- Run | Yrd Mat Min Sub Scr Traps Triggered 1 | . . . 1 . Indirectly . | . . . . . Trap Hack Attempts . | . . . . . Triggered . | . . . . . Disarmed . | . . . . . Reprogrammed . | . . . . . Reused 1 | . . . . 1 Traps Extracted . | . . . . . Installed 3 | . . . 1 2 Triggered . | . . . . . Most Traps Carried 2 | . . . . 2 Machines | -11 -10 -10 -10 -8 ---------- Run | Yrd Mat Min Sub Scr Machines Disabled 2 | . . . 1 1 Max in Single Turn 1 | . . . 1 1 Machines Repaired . | . . . . . Machines Dismantled . | . . . . . Machines Sabotaged . | . . . . . Overloaded Fab Kills . | . . . . . Hacking | -11 -10 -10 -10 -8 --------- Run | Yrd Mat Min Sub Scr Machines Accessed 6 | . 1 . 1 4 Terminals 1 | . 1 . . . Fabricators . | . . . . . Repair Stations . | . . . . . Recycling Units . | . . . . . Scanalyzers . | . . . . . Garrison Access . | . . . . . Total Hacks 31 | . 6 . 1 24 Successful 29 | . 4 . 1 24 Failed 2 | . 2 . . . Catastrophic 1 | . 1 . . . Database Lockouts . | . . . . . Manual 6 | . 6 . . . Terminals 6 | . 6 . . . Fabricators . | . . . . . Repair Stations . | . . . . . Recycling Units . | . . . . . Scanalyzers . | . . . . . Garrison Access . | . . . . . Terminal Hacks 27 | . 2 . 1 24 Record 23 | . . . . 23 Robot Analysis 2 | . 2 . . . Proto ID Catalog 2 | . . . 1 1 Fabricator Hacks . | . . . . . Repair Station Hacks . | . . . . . Recycling Unit Hacks . | . . . . . Scanalyzer . | . . . . . Garrison Access Hacks . | . . . . . Unauthorized Hacks 2 | . 2 . . . Terminals 2 | . 2 . . . Botnet 1 | . 1 . . . Operators 1 | . 1 . . . Fabricators . | . . . . . Repair Stations . | . . . . . Recycling Units . | . . . . . Scanalyzers . | . . . . . Garrison Access . | . . . . . Data Cores Recovered . | . . . . . Used . | . . . . . Hacking Detections 1 | . 1 . . . Full Trace Events . | . . . . . Feedback Events . | . . . . . Feedback Blocked . | . . . . . Robot Schematics Acquired . | . . . . . Robots Built . | . . . . . Authchips . | . . . . . Time . | . . . . . Total Robot Build Rating . | . . . . . Part Schematics Acquired . | . . . . . Parts Built . | . . . . . Authchips . | . . . . . Time . | . . . . . Total Part Build Rating . | . . . . . Part Studies Acquired . | . . . . . Parts Repaired . | . . . . . Time . | . . . . . Parts Recycled . | . . . . . Recycled Matter . | . . . . . Retrieved Matter . | . . . . . Retrieved Components . | . . . . . Parts Scanalyzed . | . . . . . Part Schematics Acquired . | . . . . . Parts Damaged . | . . . . . Bothacking | -11 -10 -10 -10 -8 ------------ Run | Yrd Mat Min Sub Scr Used RIF Installer . | . . . . . Robots Hacked . | . . . . . Non-combat . | . . . . . Combat . | . . . . . Robot Hacks Applied . | . . . . . Relay Couplers Released . | . . . . . Fabnet Peak Effective % . | . . . . . Robots Rewired . | . . . . . Allies Hacked . | . . . . . Hacks Repelled . | . . . . . Allies | -11 -10 -10 -10 -8 -------- Run | Yrd Mat Min Sub Scr Total Allies . | . . . . . Largest Group . | . . . . . Highest-Rated Group . | . . . . . Highest-Rated Ally . | . . . . . Total Orders . | . . . . . Ally Attacks . | . . . . . Total Damage . | . . . . . Kills . | . . . . . Allies Corrupted . | . . . . . Allies Melted 1 | . . . . 1 Intel | -11 -10 -10 -10 -8 ------- Run | Yrd Mat Min Sub Scr Active Infowar (turns) 12 | . . . . 12 Optics 12 | . . . . 12 Robot Analysis Total 2 | . 2 . . . Derelict Logs Recovered 5 | . . . . 5 Drone Launches . | . . . . . Drone Recoveries . | . . . . . Exploration | -11 -10 -10 -10 -8 ------------- Run | Yrd Mat Min Sub Scr Turns Passed 6870 | 170 325 183 1534 4658 Spaces Moved 3421 | 84 151 108 746 2332 Core 259 | 6 . . . 253 Treads 339 | 74 151 108 6 . Legs 5 | . . . . 5 Wheels 2818 | 4 . . 740 2074 Hover . | . . . . . Flight . | . . . . . Fastest Speed 50 | 50 160 160 95 50 Average Speed 180 | 149 160 160 172 186 Slowest Speed 345 | 160 160 160 210 345 Overloaded Moves . | . . . . . Propulsion Burnouts . | . . . . . Robots Hopped . | . . . . . Potential Cave-ins . | . . . . . Cave-ins Triggered . | . . . . . Exploration Rate (%) 39 | 4 35 33 37 88 Regions Visited 4 Branch Regions 3 Pre-discovered Areas 4 | . . . . 4 Known Exits Taken . | . . . . . Unknown Exits Taken 4 | 1 1 1 1 . Scrap Searched 8 | . . . 4 4 Spaces Dug . | . . . . . Terrain Destroyed . | . . . . . Melee . | . . . . . Projectile . | . . . . . AOE . | . . . . . Terrain Rammed . | . . . . . Walls Destroyed . | . . . . . Machines Disabled . | . . . . . Actions | -11 -10 -10 -10 -8 --------- Run | Yrd Mat Min Sub Scr Total 3987 | 110 198 118 920 2641 Wait 330 | 4 21 10 79 216 Move 3417 | 83 150 107 745 2332 Hop . | . . . . . Pick Up 62 | 1 2 1 29 29 Fast Attach 13 | 9 1 . 1 2 Attach 13 | . . . 4 9 Detach 7 | 2 1 . 2 2 Swap 19 | 1 2 . 13 3 Drop 48 | . 1 . 8 39 Fire 72 | 7 20 . 38 7 Melee . | . . . . . Ram . | . . . . . Kick . | . . . . . Crush 3 | 3 . . . . Escape Stasis . | . . . . . Rewire . | . . . . . Trap 3 | . . . 1 2 Miscellaneous . | . . . . . Route ------- -11/Scrapyard -10/Materials -10/Mines -10/Subcaves -8/Scraptown (discovered 2 exits: *Fac x2) History --------- Turn | Location | Event 37 | -11/Scrapyard | Discovered new exit (range 15) 171 | -11/Scrapyard | Entered Materials 307 | -10/Materials | Build established: Mutant 412 | -10/Materials | Discovered new exit (range 9) 496 | -10/Materials | Entered Mines 667 | -10/Mines | Discovered new exit (range 8) 679 | -10/Mines | Entered Subcaves 680 | -10/Subcaves | Approached by a straggling Scientist 1133 | -10/Subcaves | Build established: Scavenger-Mutant 1153 | -10/Subcaves | Scientist uncovered a shortcut to Scraptown 1234 | -10/Subcaves | Shifting Twisted Machinery released Mak. Light Armor Plating 1287 | -10/Subcaves | Shifting Twisted Machinery released Barrage Gun 1480 | -10/Subcaves | Disturbed a concealed Subdweller 1518 | -10/Subcaves | Build established: Hauler-Mutant 1816 | -10/Subcaves | Shifting Twisted Machinery released Sub. Machine Gun 1819 | -10/Subcaves | Shifting Twisted Machinery released Sub. Power Source 1911 | -10/Subcaves | Visited 4L-MR0's lab 1923 | -10/Subcaves | Found Prototype Device 1931 | -10/Subcaves | Found Cargo Legs 2213 | -10/Subcaves | Entered Scraptown 2360 | -8/Scraptown | Scanned Subdweller tech in exchange for log data 2364 | -8/Scraptown | Learned Factory stockpile data 2366 | -8/Scraptown | Learned Research interactive machine intel 2368 | -8/Scraptown | Learned Factory trap positions 2369 | -8/Scraptown | Learned location of 1 exit from Research 2905 | -8/Scraptown | Visited Shadow of the Wyrm 2932 | -8/Scraptown | Visited Awakened 2977 | -8/Scraptown | Visited Symbiants 3004 | -8/Scraptown | Visited Spacefarers 3061 | -8/Scraptown | Visited Science Testing Area 3090 | -8/Scraptown | Visited Cyclists 3158 | -8/Scraptown | Visited Comm Corps 3246 | -8/Scraptown | Visited UFD Registry 3246 | -8/Scraptown | Registered with UFD as "Pulseranger" 3320 | -8/Scraptown | Visited Science Guys 3386 | -8/Scraptown | Visited Curators Association 3421 | -8/Scraptown | Visited Supply Room 3451 | -8/Scraptown | Visited Cartography Club 3488 | -8/Scraptown | Visited Scrapoid Research Area 3519 | -8/Scraptown | Visited DA-N13 Charitable Foundation 3536 | -8/Scraptown | Found DCF Scrap (30 items) 3575 | -8/Scraptown | Visited Infowarlord's Domain 3839 | -8/Scraptown | Visited Abandonware Association 3868 | -8/Scraptown | Learned abandonware demo "SHUTEYE.EXE" 3868 | -8/Scraptown | Learned abandonware demo "REVENGE.EXE" 3911 | -8/Scraptown | Visited Scrap Suit Storage 4039 | -8/Scraptown | Found Surveybot 17 Chip 4054 | -8/Scraptown | Learned location of Recycling (-8) 4054 | -8/Scraptown | Learned location of Cetus (-5) 4054 | -8/Scraptown | Learned location of Archives (-5) 4054 | -8/Scraptown | Learned location of Quarantine (-3) 4054 | -8/Scraptown | Learned 8 Factory zone layouts 4054 | -8/Scraptown | Learned 16 Factory zone layouts 4054 | -8/Scraptown | Learned 16 Research zone layouts 4054 | -8/Scraptown | Learned 4 Mines zone layouts 4054 | -8/Scraptown | Learned 16 Upper Caves zone layouts 4054 | -8/Scraptown | Learned 20 Upper Caves zone layouts 4054 | -8/Scraptown | Learned 12 Proximity Caves zone layouts 4054 | -8/Scraptown | Learned location of 2 exits from Factory 4054 | -8/Scraptown | Learned location of 1 exit from Upper Caves 4054 | -8/Scraptown | Learned location of 2 exits from Upper Caves 4054 | -8/Scraptown | Identified exit to Factory 4360 | -8/Scraptown | Found Spectral Analyzer 4483 | -8/Scraptown | Found Scrap Suit 4486 | -8/Scraptown | Found Scrap Suit 5109 | -8/Scraptown | Discovered exit to Factory (range 13) 5293 | -8/Scraptown | Entered Cyclist Reading Room 6407 | -8/Scraptown | Met Optimus 6407 | -8/Scraptown | Accepted into 0bPrime 6807 | -8/Scraptown | Civil war broke out across Scraptown 6807 | -8/Scraptown | Attached CPS modules to Triborg 6809 | -8/Scraptown | Attached CPS modules to Optimus 6822 | -8/Scraptown | Attacked by Scraptown defenders 6852 | -8/Scraptown | Core integrity fell below 50% 6855 | -8/Scraptown | Attached Cargo Legs, gained temporary slots: Utility x2 6862 | -8/Scraptown | Found Tri-treads 6865 | -8/Scraptown | Found Prototype Ballistic Cannon 6869 | -8/Scraptown | Core integrity fell below 20% 6871 | -8/Scraptown | Destroyed by Optimus with Helical Railgun Last Messages --------------- 06859_ J7-06M(j) destroyed. 06861_ Critical hit (Burn: +37). 06862_ Penetrated by Bolt. 06862_ Bolt penetrates SJ-TGU(E). 06862_ Acquired Tri-treads. 06862_ Slug penetrates UX-M8S(g). 06862_ UX-M8S(g) destroyed. 06862_ BM-MZG(b) destroyed. 06864_ Bolt penetrates SJ-TGU(E). 06865_ SJ-TGU(E): "0bPrime and our allies are ready to strike fear into MC's aging processors, join us and win!" 06865_ Acquired Prototype Ballistic Cannon. 06865_ Penetrated by Bolt. 06865_ SJ-TGU(E) destroyed. 06865_ Imp. Datajack destroyed. 06865_ Penetrated by Slug. 06868_ Penetrated by Bolt. 06868_ Penetrated by Slug. 06871_ Bolt penetrates Optimus. Map ----- +----------------------------------------------------+ | # ## #??#### #######????# " "" ""#??# | | ## #??#" "#????# " "" ""#??? | | ## #??#" X#????#" #??# | | # ## #??#" "#????# "#??# | | ## #??# #????######### ###??# | | # ### ############ ##########???????##### ###### | | %= = #???????#"""" """""" | | !! p%= #???????#" | | =%* [ #???????#" | | * #???????#" | | %= #???????#" | | ############ #### #???#####" | | #??# # #???#"""" """"" | | #??#" "# #???#"""" """"" | | #??#" ######" "# #???#"""" ""### | | #??#" "#""" # "# #???#"""" ""# | | #??#" "# #" "# #???#"""" ""# | | #??#" # ""?" "# ###?#"""" ""# | | #??#" ##+###" "# ""#"#"""" ""# | | #??#" "# """"#"""" [%" | | #??#""""""""""""# | ""#######" "! | | #??############## [] ###?????#"[= "" | | #????????????# ## |[[[/ ######### %=[ "# | | #?????????????# ; /[[ !!*!!!% " " | | #???????????????# = %!=%!=! "# | | #???????????????# @!! *!=*!! ""# | | #???????????????# !!! * [= ""# | | ################# !!%* * ""### | | j!^!!%! "" | | !!!= *! "" | | !%=* %%[ | | x x =3 ! =*! | | %[ | | g ; ""#" !! | | #"""?#" !%! | | #????#"""""!%[ "" | | ## #########;### ###;#;###; ####????####### #### | | #" ??????#?? #?? # #?????????# # | | #" ??????# ?? ## #?????????## ## | | #" ????# ###?# #?????????#"! "# | | #" """ "#??# *% #???# #?????????#"! !"# | | #" """ "#??# [%= #???# #?????????#" "# | | #" """ "#??#" "#???# #?????????#"! !"# | | #" "#??## "DD" ##???# #?????????#" !"# | | ?" ?? "#???# #D # #????# #?????????####X ## | | ?"""""????????########????# #????????????#" "# | | ?#####????????????????????# #????????????" !"# | | ??????????????????????????# #????????????####### | | ???????????????????######## #??????????????????? | | ???????????????????"""""""" #????????##?????#??? | +----------------------------------------------------+ Best States ------------- Heat Dissipation 39 Energy Generation 14 Energy Capacity 275 Matter Stores 300 Matter Capacity 300 Sight Range 24 Terrain Scan Density 10 Evasion (%) 50 Recoil Reduction 2 Item Schematics ----------------- None Robot Schematics ------------------ None Fabricated ------------ Nothing Repaired ---------- Nothing Studied --------- None Alien Tech Used ----------------- None Achievements -------------- None Challenges ------------ None Game ------ Seed ExperimentalRingReplica Manual? 0 Play Time 00:40:43 Cumulative 216.3 hours Start 2026.08.03 @ 22:41:02 End 2026.08.04 @ 10:26:34 Sessions 2 Manual Loads 0 Difficulty Rogue Special Mode None Game No. 126 Rogue 126 Adventurer 0 Explorer 0 Win Type - Total 5 Types 5/0/0/0/0/0/0/0/0/0 Lore% 77 Gallery% 66 Achievement% 58 Wizard Run 0 Options --------- Layout 1 ASCII 0 Keyboard 0 Movement Numpad Keybinds 0 Fullscreen 1 Font 24/Smallcaps Map View 50x35 Zoom Use 0% Tactical HUD 1 Map Filters NONE Filters NONE Steam 1 RUN: 7d94c90e-5c1c-4ffa-a835-d0062cfc4981